[Event "Niedersachsen-ch 2020"]
[Site "Verden-Aller"]
[Date "2020.01.04"]
[Round "5.11"]
[White "Santos, Jose"]
[Black "Eickhoff, Hermann"]
[Result "1-0"]
[ECO "A46"]
[WhiteElo "1771"]
[BlackElo "1785"]
[Annotator "NA"]
[PlyCount "82"]
[EventDate "2020.01.02"]
[EventType "swiss"]
[EventCountry "GER"]
[SourceTitle "playchess.com"]
[Source "ChessBase"]
[SourceQuality "1"]
[TimeControl "40/5400+30:1800+30"]

1. d4 {[%emt 0:00:00]} Nf6 {[%emt 0:00:00]} 2. Nf3 {[%emt 0:00:00]} d6 {[%emt 0:00:00]} 3. e3 {[%emt 0:01:10]} c6 {[%emt 0:00:19]} 4. Bd3 {[%emt 0:05:37]} e5 {[%emt 0:02:03]} 5. e4 {[%emt 0:06:38]} exd4 {[%emt 0:04:04]} 6. Nxd4 {[%emt 0:01:05]} Nbd7 {[%emt 0:06:43]} 7. O-O {[%emt 0:01:24]} Ne5 {[%emt 0:00:26]} 8. Bf4 {[%emt 0:08:21]} Bg4 {[%emt 0:02:04]} 9. Qd2 {[%emt 0:01:32]} Nxd3 {[%emt 0:02:00]} 10. Qxd3 {[%emt 0:03:36]} Nh5 {[%emt 0:01:09]} 11. Be3 {[%emt 0:02:04]} Be7 {[%emt 0:01:38]} 12. c4 {[%emt 0:06:02]} O-O {[%emt 0:02:02]} 13. Nc3 {[%emt 0:00:05]} a6 {[%emt 0:01:47]} 14. a4 {[%emt 0:02:08]} c5 $16 {[%emt 0:03:13]} 15. Nde2 {[%emt 0:02:15]} Nf6 {[%emt 0:05:54]} 16. f3 {[%emt 0:01:40]} Be6 {[%emt 0:01:24]} 17. Nf4 {[%emt 0:01:20]} Nd7 {[%emt 0:08:01]} 18. Ncd5 {[%emt 0:06:29]} Ne5 {[%emt 0:02:09]} 19. Qc2 {[%emt 0:01:19]} Nc6 {[%emt 0:03:03]} 20. Rfd1 {[%emt 0:01:08]} Bxd5 {[%emt 0:02:48]} 21. Nxd5 {[%emt 0:00:11]} Nb4 {[%emt 0:01:18]} 22. Nxb4 {[%emt 0:01:18]} cxb4 {[%emt 0:00:02]} 23. Rd5 {[%emt 0:01:40]} Qc7 {[%emt 0:02:20]} 24. Rad1 {[%emt 0:01:30]} Rfc8 {[%emt 0:05:44]} 25. b3 {[%emt 0:01:49]} a5 {[%emt 0:06:27]} 26. Bf4 {[%emt 0:02:36]} Ra6 {[%emt 0:00:42]} 27. R1d3 {[%emt 0:01:08]} Rc6 {[%emt 0:07:25]} 28. Qd1 {[%emt 0:01:27]} Rd8 {[%emt 0:08:52]} 29. e5 {[%emt 0:02:21]} Qb6+ {[%emt 0:01:50]} 30. Kh1 {[%emt 0:01:15]} g5 {[%emt 0:00:57]} 31. Bg3 {[%emt 0:01:07]} h5 {[%emt 0:01:26]} 32. exd6 {[%emt 0:03:25]} Bf6 {[%emt 0:01:18]} 33. h3 {[%emt 0:01:39]} h4 {[%emt 0:00:25]} 34. Bh2 {[%emt 0:01:20]} Kg7 {[%emt 0:01:41]} 35. Bg1 {[%emt 0:03:21]} Qa6 {[%emt 0:01:16]} 36. f4 {[%emt 0:01:48]} gxf4 {[%emt 0:05:08]} 37. Qg4+ {[%emt 0:00:37]} Kf8 {[%emt 0:00:31]} 38. Qxf4 {[%emt 0:01:26]} Bg7 {[%emt 0:01:47]} 39. Qxh4 {[%emt 0:06:44]} Rd7 {[%emt 0:02:27]} 40. Qg4 {[%emt 0:04:12]} Rd8 {[%emt 0:00:47]} 41. Rg3 {[%emt 0:32:11]} Ke8 {[%emt 0:32:02]} 1-0

[Event "Niedersachsen-ch 2020"]
[Site "Verden-Aller"]
[Date "2020.01.04"]
[Round "5.12"]
[White "Kobs, Stephan"]
[Black "Korb, Ruben"]
[Result "0-1"]
[ECO "C77"]
[WhiteElo "1962"]
[BlackElo "1709"]
[Annotator "NA"]
[PlyCount "104"]
[EventDate "2020.01.02"]
[EventType "swiss"]
[EventCountry "GER"]
[SourceTitle "playchess.com"]
[Source "ChessBase"]
[SourceQuality "1"]
[TimeControl "40/5400+30:1800+30"]

1. e4 {[%emt 0:00:00]} e5 {[%emt 0:00:00]} 2. Nf3 {[%emt 0:00:00]} Nc6 {[%emt 0:00:00]} 3. Bb5 {[%emt 0:00:27]} a6 {[%emt 0:00:00]} 4. Ba4 {[%emt 0:00:29]} Nf6 {[%emt 0:00:00]} 5. d4 {[%emt 0:00:52]} exd4 {[%emt 0:01:35]} 6. O-O {[%emt 0:00:28]} Be7 {[%emt 0:00:28]} 7. Re1 {[%emt 0:00:43]} b5 {[%emt 0:00:39]} 8. e5 {[%emt 0:01:25]} Nxe5 {[%emt 0:00:28]} 9. Rxe5 {[%emt 0:00:23]} d6 {[%emt 0:00:15]} 10. Re1 {[%emt 0:00:58]} bxa4 {[%emt 0:00:06]} 11. Nxd4 {[%emt 0:00:40]} Bd7 {[%emt 0:00:06]} 12. Qf3 {[%emt 0:01:18]} O-O {[%emt 0:00:08]} 13. Nc6 {[%emt 0:00:55]} Bxc6 {[%emt 0:00:16]} 14. Qxc6 {[%emt 0:00:08]} d5 {[%emt 0:00:08]} 15. Nc3 {[%emt 0:11:43]} a3 {[%emt 0:02:02]} 16. b3 {[%emt 0:01:19]} Qd6 {[%emt 0:08:35]} 17. Qxd6 {[%emt 0:06:42]} Bxd6 {[%emt 0:01:42]} 18. Bd2 {[%emt 0:01:45]} Rfe8 {[%emt 0:01:47]} 19. Rad1 {[%emt 0:01:13]} Bc5 {[%emt 0:03:00]} 20. Rxe8+ {[%emt 0:12:07]} Rxe8 {[%emt 0:00:18]} 21. Re1 {[%emt 0:01:05]} Kf8 {[%emt 0:04:48]} 22. Na4 {[%emt 0:07:57]} Bd6 {[%emt 0:03:43]} 23. Rxe8+ {[%emt 0:06:03]} Kxe8 {[%emt 0:00:15]} 24. Kf1 {[%emt 0:01:12]} Ne4 {[%emt 0:04:43]} 25. Be3 {[%emt 0:02:31]} f5 {[%emt 0:07:18]} 26. f3 {[%emt 0:00:52]} Nf6 {[%emt 0:00:14]} 27. g3 {[%emt 0:01:27]} Nd7 {[%emt 0:07:27]} 28. Ke2 {[%emt 0:01:10]} Kf7 {[%emt 0:03:38]} 29. c3 {[%emt 0:06:54]} Ke6 {[%emt 0:06:17]} 30. f4 {[%emt 0:15:37]} a5 {[%emt 0:13:57]} 31. Kd3 {[%emt 0:02:09]} Be7 {[%emt 0:02:44]} 32. c4 {[%emt 0:05:28]} c6 {[%emt 0:05:17]} 33. Bd2 {[%emt 0:06:54]} Bb4 {[%emt 0:04:32]} 34. Bxb4 {[%emt 0:02:51]} axb4 {[%emt 0:00:03]} 35. c5 {[%emt 0:00:18]} Nf6 {[%emt 0:01:24]} 36. Kd4 {[%emt 0:00:39]} h5 {[%emt 0:02:55]} 37. Nb6 {[%emt 0:00:19]} Ne4 {[%emt 0:02:08]} 38. Na8 {[%emt 0:00:25]} Nc3 {[%emt 0:01:08]} 39. Nc7+ {[%emt 0:00:47]} Kd7 {[%emt 0:00:32]} 40. Na6 {[%emt 0:00:24]} Nxa2 {[%emt 0:00:47]} 41. Ke5 {[%emt 0:30:55]} Nc3 {[%emt 0:35:36]} 42. Nxb4 {[%emt 0:00:08]} a2 {[%emt 0:00:09]} 43. Nxa2 {[%emt 0:00:25]} Nxa2 {[%emt 0:00:11]} 44. Kxf5 {[%emt 0:00:32]} Nb4 {[%emt 0:00:36]} 45. Ke5 {[%emt 0:00:00]} Nc2 {[%emt 0:00:00]} 46. f5 {[%emt 0:00:00]} Ke7 {[%emt 0:00:00]} 47. h3 {[%emt 0:00:00]} Ne3 {[%emt 0:00:00]} 48. Kf4 {[%emt 0:00:00]} Nc2 {[%emt 0:00:00]} 49. g4 {[%emt 0:00:00]} hxg4 {[%emt 0:00:00]} 50. hxg4 {[%emt 0:00:00]} Nb4 {[%emt 0:00:00]} 51. Ke5 {[%emt 0:00:00]} Na6 {[%emt 0:00:00]} 52. Kd4 {[%emt 0:00:00]} Kf6 {[%emt 0:00:00]} 0-1

[Event "Niedersachsen-ch 2020"]
[Site "Verden-Aller"]
[Date "2020.01.04"]
[Round "6.1"]
[White "Riemay, David"]
[Black "Abel, Dennes"]
[Result "0-1"]
[ECO "D04"]
[WhiteElo "2139"]
[BlackElo "2463"]
[Annotator "ChessBase"]
[PlyCount "74"]
[EventDate "2020.01.02"]
[EventType "swiss"]
[EventCountry "GER"]
[SourceTitle "playchess.com"]
[Source "ChessBase"]
[SourceQuality "1"]
[TimeControl "40/5400+30:1800+30"]

1. d4 {[%emt 0:00:00]} d5 {[%emt 0:00:00]} 2. Nf3 {[%emt 0:00:00]} Nf6 {[%emt 0:00:00]} 3. e3 {[%emt 0:00:00]} Bg4 {[%emt 0:00:27]} 4. Be2 {[%emt 0:01:12]} e6 {[%emt 0:01:15]} 5. Nbd2 {[%emt 0:00:44]} c5 {[%emt 0:01:22]} 6. h3 {[%emt 0:00:32]} Bh5 {[%emt 0:07:07]} 7. b3 {[%emt 0:05:12]} cxd4 {[%emt 0:01:23]} 8. Nxd4 {[%emt 0:01:52]} Bxe2 {[%emt 0:01:10]} 9. Qxe2 {[%emt 0:00:06]} Nc6 {[%emt 0:00:46]} 10. Bb2 {[%emt 0:01:23]} Rc8 {[%emt 0:03:22]} 11. O-O {[%emt 0:10:09]} Bc5 {[%emt 0:12:14]} 12. Nxc6 {[%emt 0:00:40]} bxc6 {[%emt 0:01:09]} 13. c4 {[%emt 0:04:16]} O-O {[%emt 0:00:50]} 14. Rfd1 {[%emt 0:02:45]} Qe7 {[%emt 0:04:22]} 15. e4 {[%emt 0:13:50]} Ba3 {[%emt 0:11:29]} 16. Rab1 {[%emt 0:12:06]} Bxb2 {[%emt 0:00:43]} 17. Rxb2 {[%emt 0:00:04]} Rcd8 {[%emt 0:03:46]} 18. e5 {[%emt 0:05:26]} Nd7 {[%emt 0:01:53]} 19. Nf3 {[%emt 0:00:42]} Nb6 {[%emt 0:11:41]} 20. cxd5 {[%emt 0:03:11]} Rxd5 {[%emt 0:03:24]} 21. Rxd5 {[%emt 0:00:50]} exd5 {[%emt 0:02:04]} 22. Rc2 {[%emt 0:15:19]} c5 {[%emt 0:01:09]} 23. a4 {[%emt 0:04:59]} c4 {[%emt 0:00:50]} 24. bxc4 {[%emt 0:01:04]} Nxc4 {[%emt 0:00:05]} 25. Nd4 {[%emt 0:02:18]} Re8 {[%emt 0:01:53]} 26. f4 {[%emt 0:04:17]} g6 {[%emt 0:00:19]} 27. Kh2 {[%emt 0:01:07]} Qb4 {[%emt 0:00:49]} 28. Qf3 {[%emt 0:04:34]} Nb6 {[%emt 0:05:44]} 29. Qf2 {[%emt 0:01:19]} Nc4 {[%emt 0:07:42]} 30. Qf3 {[%emt 0:00:38]} Rf8 {[%emt 0:02:52]} 31. Nc6 {[%emt 0:03:28]} Qxa4 {[%emt 0:01:23]} 32. Ne7+ {[%emt 0:00:02]} Kh8 {[%emt 0:01:14]} 33. Qc3 {[%emt 0:00:13]} Ne3 {[%emt 0:04:52]} 34. Rf2 {[%emt 0:02:05]} d4 {[%emt 0:05:39]} 35. Qc6 {[%emt 0:00:02]} Qxc6 {[%emt 0:00:31]} 36. Nxc6 {[%emt 0:00:04]} d3 {[%emt 0:00:04]} 37. Kg3 {[%emt 0:00:59]} d2 {[%emt 0:00:14]} 0-1

[Event "Niedersachsen-ch 2020"]
[Site "Verden-Aller"]
[Date "2020.01.04"]
[Round "6.2"]
[White "Renner, Kai"]
[Black "Voege, Tobias"]
[Result "0-1"]
[ECO "B39"]
[WhiteElo "2180"]
[BlackElo "2310"]
[Annotator "NA"]
[PlyCount "76"]
[EventDate "2020.01.02"]
[EventType "swiss"]
[EventCountry "GER"]
[SourceTitle "playchess.com"]
[Source "ChessBase"]
[SourceQuality "1"]
[TimeControl "40/5400+30:1800+30"]

1. e4 {[%emt 0:00:00]} c5 {[%emt 0:00:00]} 2. Nf3 {[%emt 0:00:00]} Nc6 {[%emt 0:00:00]} 3. d4 {[%emt 0:00:00]} cxd4 {[%emt 0:00:00]} 4. Nxd4 {[%emt 0:00:01]} g6 {[%emt 0:00:00]} 5. c4 {[%emt 0:00:37]} Bg7 {[%emt 0:00:00]} 6. Be3 {[%emt 0:00:20]} Nf6 {[%emt 0:00:02]} 7. Nc3 {[%emt 0:00:21]} Ng4 {[%emt 0:00:45]} 8. Qxg4 {[%emt 0:00:25]} Nxd4 {[%emt 0:00:04]} 9. Qd1 {[%emt 0:00:17]} e5 {[%emt 0:00:05]} 10. Bd3 {[%emt 0:01:52]} O-O {[%emt 0:00:24]} 11. O-O {[%emt 0:01:47]} d6 {[%emt 0:00:28]} 12. Qd2 {[%emt 0:01:16]} a6 {[%emt 0:07:57]} 13. Rac1 {[%emt 0:05:38]} Be6 {[%emt 0:08:58]} 14. b3 $14 {[%emt 0:02:18]} f5 {[%emt 0:24:36]} 15. exf5 {[%emt 0:01:54]} gxf5 {[%emt 0:05:16]} 16. f3 {[%emt 0:03:29]} Kh8 {[%emt 0:11:42]} 17. Rfd1 {[%emt 0:03:15]} Qh4 {[%emt 0:08:27]} 18. Bf1 {[%emt 0:06:38]} Rg8 {[%emt 0:12:28]} 19. Ne2 {[%emt 0:16:26]} Nxe2+ {[%emt 0:05:31]} 20. Bxe2 {[%emt 0:02:11]} Bf8 {[%emt 0:02:10]} 21. f4 {[%emt 0:12:12]} Be7 {[%emt 0:04:34]} 22. c5 {[%emt 0:09:39]} Rad8 {[%emt 0:02:04]} 23. cxd6 {[%emt 0:08:14]} Bxd6 {[%emt 0:01:00]} 24. Qb2 {[%emt 0:00:42]} Qh3 {[%emt 0:01:51]} 25. g3 {[%emt 0:03:11]} Rxg3+ {[%emt 0:00:44]} 26. hxg3 {[%emt 0:00:05]} Qxg3+ {[%emt 0:00:07]} 27. Kf1 {[%emt 0:00:21]} Qxe3 {[%emt 0:00:18]} 28. fxe5 {[%emt 0:08:35]} Qf4+ {[%emt 0:00:23]} 29. Bf3 {[%emt 0:03:39]} Qxf3+ {[%emt 0:00:10]} 30. Qf2 {[%emt 0:00:05]} Qh3+ {[%emt 0:01:29]} 31. Ke2 {[%emt 0:00:21]} Be7 {[%emt 0:01:34]} 32. Rxd8+ {[%emt 0:00:38]} Bxd8 {[%emt 0:00:04]} 33. Qc5 {[%emt 0:00:20]} Qg2+ {[%emt 0:01:10]} 34. Kd1 {[%emt 0:00:56]} Bg5 {[%emt 0:00:48]} 35. Qf8+ {[%emt 0:06:24]} Bg8 {[%emt 0:00:05]} 36. Ke1 {[%emt 0:02:02]} Qd2+ {[%emt 0:00:08]} 37. Kf1 {[%emt 0:00:05]} Qxc1+ {[%emt 0:00:05]} 38. Kg2 {[%emt 0:00:21]} Qb2+ {[%emt 0:00:30]} 0-1

[Event "Niedersachsen-ch 2020"]
[Site "Verden-Aller"]
[Date "2020.01.04"]
[Round "6.3"]
[White "Mueer, Sebastian"]
[Black "Hartogh, Christian"]
[Result "1-0"]
[ECO "A33"]
[WhiteElo "2223"]
[BlackElo "2075"]
[Annotator "NA"]
[PlyCount "119"]
[EventDate "2020.01.02"]
[EventType "swiss"]
[EventCountry "GER"]
[SourceTitle "playchess.com"]
[Source "ChessBase"]
[SourceQuality "1"]
[TimeControl "40/5400+30:1800+30"]

1. Nf3 {[%emt 0:02:01]} c5 {[%emt 0:00:16]} 2. c4 {[%emt 0:00:13]} Nf6 {[%emt 0:00:07]} 3. Nc3 {[%emt 0:00:18]} Nc6 {[%emt 0:01:06]} 4. d4 {[%emt 0:02:02]} cxd4 {[%emt 0:00:10]} 5. Nxd4 {[%emt 0:00:02]} e6 {[%emt 0:06:16]} 6. g3 {[%emt 0:00:26]} d5 {[%emt 0:09:44]} 7. Bg2 {[%emt 0:02:13]} Bc5 {[%emt 0:03:42]} 8. Nb3 {[%emt 0:01:48]} Bb4 {[%emt 0:00:38]} 9. O-O {[%emt 0:10:01]} dxc4 {[%emt 0:04:02]} 10. Qxd8+ {[%emt 0:00:33]} Kxd8 {[%emt 0:00:41]} 11. Rd1+ {[%emt 0:13:01]} Ke7 {[%emt 0:01:41]} 12. Nd4 {[%emt 0:00:39]} Na5 {[%emt 0:13:52]} 13. Bg5 {[%emt 0:02:31]} h6 {[%emt 0:12:34]} 14. Nf5+ {[%emt 0:00:40]} exf5 {[%emt 0:01:17]} 15. Nd5+ {[%emt 0:00:03]} Kf8 {[%emt 0:01:12]} 16. Bxf6 {[%emt 0:09:36]} gxf6 {[%emt 0:00:23]} 17. Nxb4 {[%emt 0:00:33]} Be6 {[%emt 0:00:55]} 18. Nd5 {[%emt 0:02:00]} Kg7 {[%emt 0:00:55]} 19. Rd4 {[%emt 0:06:57]} Rad8 {[%emt 0:06:52]} 20. Rad1 {[%emt 0:03:45]} Bxd5 {[%emt 0:01:28]} 21. Rxd5 {[%emt 0:00:50]} Nc6 {[%emt 0:00:12]} 22. Rd7 {[%emt 0:00:48]} Rxd7 {[%emt 0:01:14]} 23. Rxd7 {[%emt 0:00:03]} Rb8 {[%emt 0:05:39]} 24. f4 {[%emt 0:09:34]} Nb4 {[%emt 0:12:31]} 25. a3 {[%emt 0:09:02]} Nc2 {[%emt 0:00:06]} 26. Bd5 {[%emt 0:05:32]} c3 {[%emt 0:01:33]} 27. bxc3 {[%emt 0:02:59]} Nxa3 {[%emt 0:00:04]} 28. Bxf7 {[%emt 0:11:16]} a5 {[%emt 0:01:28]} 29. Bd5+ {[%emt 0:00:05]} Kf8 {[%emt 0:01:33]} 30. Bxb7 {[%emt 0:02:11]} Nb1 {[%emt 0:00:46]} 31. c4 {[%emt 0:01:42]} a4 {[%emt 0:01:20]} 32. c5 {[%emt 0:00:01]} Nc3 {[%emt 0:00:17]} 33. c6 {[%emt 0:00:25]} Nb5 {[%emt 0:00:29]} 34. Rd5 {[%emt 0:00:42]} Nc7 {[%emt 0:01:41]} 35. Ra5 {[%emt 0:00:02]} Re8 {[%emt 0:00:47]} 36. Kf2 {[%emt 0:01:06]} Re4 {[%emt 0:00:02]} 37. Ra7 {[%emt 0:01:21]} Ke7 {[%emt 0:00:45]} 38. Bc8 {[%emt 0:00:52]} Kd6 {[%emt 0:00:06]} 39. Bxf5 {[%emt 0:00:35]} Rb4 {[%emt 0:00:34]} 40. Bd7 {[%emt 0:00:30]} Nb5 {[%emt 0:01:01]} 41. Ra8 {[%emt 0:04:32]} Kc7 {[%emt 0:04:04]} 42. Ke3 {[%emt 0:04:43]} a3 {[%emt 0:02:30]} 43. Kd3 {[%emt 0:01:15]} Rb2 {[%emt 0:00:57]} 44. Be6 {[%emt 0:00:32]} Kxc6 {[%emt 0:03:12]} 45. Bc4 {[%emt 0:00:01]} Nd6 {[%emt 0:02:51]} 46. Rxa3 {[%emt 0:05:14]} Nxc4 {[%emt 0:00:32]} 47. Kxc4 {[%emt 0:00:07]} Rxe2 {[%emt 0:00:06]} 48. Ra6+ {[%emt 0:01:24]} Kd7 {[%emt 0:00:10]} 49. Kd5 {[%emt 0:02:16]} Rd2+ {[%emt 0:13:56]} 50. Ke4 {[%emt 0:00:19]} Rxh2 {[%emt 0:00:16]} 51. Rxf6 {[%emt 0:00:36]} Ke7 {[%emt 0:00:24]} 52. Ra6 {[%emt 0:00:19]} h5 {[%emt 0:03:09]} 53. Rh6 {[%emt 0:00:55]} Kf7 {[%emt 0:01:20]} 54. g4 {[%emt 0:01:09]} h4 {[%emt 0:00:10]} 55. g5 {[%emt 0:01:29]} Kg7 {[%emt 0:02:36]} 56. Kf3 {[%emt 0:01:36]} Rh1 {[%emt 0:01:41]} 57. Kg4 {[%emt 0:00:25]} Rg1+ {[%emt 0:00:27]} 58. Kxh4 {[%emt 0:00:28]} Rg2 {[%emt 0:00:37]} 59. Ra6 {[%emt 0:00:09]} Rg1 {[%emt 0:00:23]} 60. Kh5 {[%emt 0:00:02]} 1-0

[Event "Niedersachsen-ch 2020"]
[Site "Verden-Aller"]
[Date "2020.01.04"]
[Round "6.4"]
[White "Hampel, Felix"]
[Black "Schulze, Torben"]
[Result "1/2-1/2"]
[ECO "A21"]
[WhiteElo "2290"]
[BlackElo "2266"]
[Annotator "ChessBase"]
[PlyCount "34"]
[EventDate "2020.01.02"]
[EventType "swiss"]
[EventCountry "GER"]
[SourceTitle "playchess.com"]
[Source "ChessBase"]
[SourceQuality "1"]
[TimeControl "40/5400+30:1800+30"]

1. c4 {[%emt 0:00:00]} e5 {[%emt 0:00:00]} 2. Nc3 {[%emt 0:00:00]} Bb4 {[%emt 0:00:05]} 3. Nd5 {[%emt 0:00:00]} Bc5 {[%emt 0:00:02]} 4. Nf3 {[%emt 0:00:40]} c6 {[%emt 0:01:41]} 5. Nc3 {[%emt 0:01:48]} d6 {[%emt 0:00:20]} 6. d4 {[%emt 0:00:58]} exd4 {[%emt 0:00:08]} 7. Nxd4 {[%emt 0:00:06]} Nf6 {[%emt 0:00:31]} 8. Nb3 {[%emt 0:06:28]} Bb4 {[%emt 0:02:51]} 9. Bd2 {[%emt 0:01:28]} O-O {[%emt 0:06:39]} 10. a3 {[%emt 0:01:46]} Bxc3 {[%emt 0:00:07]} 11. Bxc3 {[%emt 0:00:07]} Ne4 {[%emt 0:01:18]} 12. Qd4 {[%emt 0:06:36]} Nxc3 {[%emt 0:00:31]} 13. Qxc3 {[%emt 0:00:07]} a5 {[%emt 0:05:05]} 14. e3 {[%emt 0:04:10]} a4 {[%emt 0:01:14]} 15. Nd4 {[%emt 0:03:08]} Na6 {[%emt 0:01:19]} 16. Bd3 {[%emt 0:04:37]} Nc5 {[%emt 0:00:45]} 17. Bc2 {[%emt 0:00:25]} Qe7 {[%emt 0:06:43]} 1/2-1/2

[Event "Niedersachsen-ch 2020"]
[Site "Verden-Aller"]
[Date "2020.01.04"]
[Round "6.5"]
[White "Pubantz, Jan"]
[Black "Knuedel, Torben"]
[Result "1/2-1/2"]
[ECO "E06"]
[WhiteElo "2233"]
[BlackElo "2185"]
[Annotator "NA"]
[PlyCount "81"]
[EventDate "2020.01.02"]
[EventType "swiss"]
[EventCountry "GER"]
[SourceTitle "playchess.com"]
[Source "ChessBase"]
[SourceQuality "1"]
[TimeControl "40/5400+30:1800+30"]

1. d4 {[%emt 0:03:51]} Nf6 {[%emt 0:00:00]} 2. c4 {[%emt 0:00:04]} e6 {[%emt 0:00:00]} 3. g3 {[%emt 0:00:06]} d5 {[%emt 0:00:00]} 4. Bg2 {[%emt 0:00:05]} Be7 {[%emt 0:00:00]} 5. Nf3 {[%emt 0:00:05]} O-O {[%emt 0:00:02]} 6. Nc3 {[%emt 0:00:07]} dxc4 {[%emt 0:00:04]} 7. Ne5 {[%emt 0:00:04]} Nc6 {[%emt 0:00:04]} 8. Bxc6 {[%emt 0:00:06]} bxc6 {[%emt 0:00:03]} 9. Nxc6 {[%emt 0:00:04]} Qe8 {[%emt 0:00:09]} 10. Nxe7+ {[%emt 0:00:04]} Qxe7 {[%emt 0:00:06]} 11. Qa4 {[%emt 0:00:07]} c5 {[%emt 0:00:11]} 12. dxc5 {[%emt 0:00:05]} Qxc5 {[%emt 0:00:06]} 13. Be3 {[%emt 0:00:05]} Qh5 {[%emt 0:00:46]} 14. f3 {[%emt 0:01:58]} Bb7 {[%emt 0:05:13]} 15. O-O {[%emt 0:00:07]} Rfc8 {[%emt 0:35:05]} 16. Rad1 {[%emt 0:02:21]} e5 {[%emt 0:03:36]} 17. Qa5 {[%emt 0:17:20]} Qh3 {[%emt 0:02:11]} 18. Rf2 {[%emt 0:00:40]} Qe6 {[%emt 0:03:02]} 19. Nb5 {[%emt 0:34:51]} Nd5 {[%emt 0:12:47]} 20. Bxa7 {[%emt 0:04:30]} e4 {[%emt 0:03:13]} 21. a4 {[%emt 0:12:16]} Qg6 {[%emt 0:20:26]} 22. Rxd5 {[%emt 0:10:32]} Bxd5 {[%emt 0:00:39]} 23. Nc7 {[%emt 0:00:11]} Rxc7 {[%emt 0:07:48]} 24. Qxc7 {[%emt 0:00:03]} Qc6 {[%emt 0:00:08]} 25. Qxc6 {[%emt 0:07:44]} Bxc6 {[%emt 0:00:02]} 26. Bd4 {[%emt 0:00:24]} Rxa4 {[%emt 0:00:22]} 27. g4 {[%emt 0:01:28]} Ra1+ {[%emt 0:02:22]} 28. Kg2 {[%emt 0:00:22]} Rd1 {[%emt 0:00:13]} 29. Bc3 {[%emt 0:00:46]} exf3+ {[%emt 0:00:52]} 30. exf3 {[%emt 0:00:11]} Rd3 {[%emt 0:00:28]} 31. g5 {[%emt 0:01:49]} h6 {[%emt 0:03:26]} 32. gxh6 {[%emt 0:01:13]} gxh6 {[%emt 0:00:02]} 33. Kg3 {[%emt 0:00:15]} Kh7 {[%emt 0:02:07]} 34. Rf1 {[%emt 0:01:32]} Kg6 {[%emt 0:00:33]} 35. Kf4 {[%emt 0:00:18]} f6 {[%emt 0:00:16]} 36. Kg4 {[%emt 0:01:34]} Bd7+ {[%emt 0:00:31]} 37. Kf4 {[%emt 0:00:26]} Bc6 {[%emt 0:00:05]} 38. Rf2 {[%emt 0:00:17]} Bb7 {[%emt 0:00:09]} 39. Rg2+ {[%emt 0:00:36]} Kf7 {[%emt 0:00:11]} 40. Rf2 {[%emt 0:00:31]} Bc6 {[%emt 0:00:16]} 41. Kg4 {[%emt 0:03:08]} 1/2-1/2

[Event "Niedersachsen-ch 2020"]
[Site "Verden-Aller"]
[Date "2020.01.04"]
[Round "6.6"]
[White "Stelmaszyk, Nico"]
[Black "Ermel, Dirk"]
[Result "1/2-1/2"]
[ECO "B13"]
[WhiteElo "2203"]
[BlackElo "2125"]
[Annotator "NA"]
[PlyCount "135"]
[EventDate "2020.01.02"]
[EventType "swiss"]
[EventCountry "GER"]
[SourceTitle "playchess.com"]
[Source "ChessBase"]
[SourceQuality "1"]
[TimeControl "40/5400+30:1800+30"]

1. e4 {[%emt 0:00:00]} c6 {[%emt 0:00:00]} 2. d4 {[%emt 0:00:00]} d5 {[%emt 0:00:00]} 3. exd5 {[%emt 0:00:00]} cxd5 {[%emt 0:00:00]} 4. c4 {[%emt 0:00:00]} Nf6 {[%emt 0:00:00]} 5. Nc3 {[%emt 0:00:16]} Nc6 {[%emt 0:00:00]} 6. Bg5 {[%emt 0:00:18]} Qb6 {[%emt 0:02:32]} 7. cxd5 {[%emt 0:06:30]} Nxd4 {[%emt 0:02:23]} 8. Be3 {[%emt 0:01:46]} e5 {[%emt 0:00:11]} 9. dxe6 {[%emt 0:00:10]} Bc5 {[%emt 0:00:10]} 10. exf7+ {[%emt 0:08:57]} Kxf7 {[%emt 0:00:11]} 11. Bc4+ {[%emt 0:02:07]} Be6 {[%emt 0:00:09]} 12. Bxe6+ {[%emt 0:01:55]} Nxe6 {[%emt 0:00:06]} 13. Qe2 {[%emt 0:03:02]} Rhe8 {[%emt 0:14:26]} 14. O-O-O {[%emt 0:07:07]} Rac8 {[%emt 0:18:33]} 15. Nf3 {[%emt 0:06:05]} Bxe3+ {[%emt 0:06:56]} 16. Qxe3 {[%emt 0:02:24]} Nc5 {[%emt 0:06:42]} 17. Qf4 {[%emt 0:07:04]} Nce4 {[%emt 0:12:21]} 18. Ng5+ {[%emt 0:17:13]} Nxg5 {[%emt 0:09:48]} 19. Qxg5 {[%emt 0:01:16]} Re2 {[%emt 0:00:21]} 20. Rd7+ {[%emt 0:03:56]} Nxd7 {[%emt 0:03:43]} 21. Qh5+ {[%emt 0:02:25]} Qg6 {[%emt 0:06:25]} 22. Qxe2 {[%emt 0:00:46]} Qxg2 {[%emt 0:00:15]} 23. Re1 {[%emt 0:03:13]} Qg5+ {[%emt 0:00:46]} 24. Kb1 {[%emt 0:01:26]} Qf5+ {[%emt 0:02:34]} 25. Ka1 {[%emt 0:02:10]} Kg8 {[%emt 0:00:45]} 26. Nb5 {[%emt 0:02:55]} Qc5 {[%emt 0:03:36]} 27. Qe6+ {[%emt 0:01:03]} Kh8 {[%emt 0:00:20]} 28. a3 {[%emt 0:05:48]} Nf8 {[%emt 0:02:45]} 29. Qb3 {[%emt 0:03:00]} h6 {[%emt 0:02:00]} 30. Rd1 {[%emt 0:00:50]} Qc2 {[%emt 0:02:38]} 31. Qf3 {[%emt 0:01:03]} Ng6 {[%emt 0:00:14]} 32. Nd4 {[%emt 0:01:43]} Qc7 {[%emt 0:01:54]} 33. Qf5 {[%emt 0:00:47]} Ne7 {[%emt 0:00:23]} 34. Qg4 {[%emt 0:00:56]} Ng8 {[%emt 0:01:49]} 35. Ne6 {[%emt 0:00:38]} Nf6 {[%emt 0:00:25]} 36. Qf5 {[%emt 0:00:37]} Qc2 {[%emt 0:00:34]} 37. Rd8+ {[%emt 0:05:00]} Ng8 {[%emt 0:00:01]} 38. Qxc2 {[%emt 0:02:02]} Rxc2 {[%emt 0:00:01]} 39. Rd7 {[%emt 0:00:19]} Rxf2 {[%emt 0:00:58]} 40. Nxg7 {[%emt 0:00:17]} Rxh2 {[%emt 0:01:27]} 41. Rxb7 {[%emt 0:31:11]} Rg2 {[%emt 0:02:29]} 42. Nh5 {[%emt 0:00:00]} Rg5 {[%emt 0:01:48]} 43. Nf4 {[%emt 0:00:00]} Rg7 {[%emt 0:00:36]} 44. Rb8 {[%emt 0:00:00]} Kh7 {[%emt 0:00:40]} 45. Ka2 {[%emt 0:00:00]} Rf7 {[%emt 0:01:07]} 46. Nh5 {[%emt 0:00:00]} Ne7 {[%emt 0:06:42]} 47. Rb7 {[%emt 0:00:00]} Kg6 {[%emt 0:00:16]} 48. Nf4+ {[%emt 0:00:00]} Rxf4 {[%emt 0:00:36]} 49. Rxe7 {[%emt 0:00:00]} Rf7 {[%emt 0:01:58]} 50. Re6+ {[%emt 0:00:00]} Kg5 {[%emt 0:00:40]} 51. b4 {[%emt 0:00:00]} Rh7 {[%emt 0:01:01]} 52. b5 {[%emt 0:00:00]} h5 {[%emt 0:00:39]} 53. Kb3 {[%emt 0:00:00]} h4 {[%emt 0:00:35]} 54. Kb4 {[%emt 0:00:00]} h3 {[%emt 0:00:38]} 55. Re1 {[%emt 0:00:00]} h2 {[%emt 0:00:45]} 56. Rh1 {[%emt 0:00:00]} Kf4 {[%emt 0:03:31]} 57. a4 {[%emt 0:00:00]} Kg3 {[%emt 0:02:22]} 58. Ka5 {[%emt 0:00:00]} Rh6 {[%emt 0:01:37]} 59. Rc1 {[%emt 0:00:00]} h1=Q {[%emt 0:02:34]} 60. Rxh1 {[%emt 0:00:00]} Rxh1 {[%emt 0:00:08]} 61. Ka6 {[%emt 0:00:00]} Ra1 {[%emt 0:01:36]} 62. Kxa7 {[%emt 0:00:00]} Rxa4+ {[%emt 0:00:10]} 63. Kb7 {[%emt 0:00:00]} Kf4 {[%emt 0:00:21]} 64. b6 {[%emt 0:00:04]} Ke5 {[%emt 0:00:51]} 65. Kc7 {[%emt 0:01:23]} Rc4+ {[%emt 0:00:50]} 66. Kd7 {[%emt 0:00:06]} Rb4 {[%emt 0:04:44]} 67. Kc7 {[%emt 0:00:21]} Rxb6 {[%emt 0:02:30]} 68. Kxb6 1/2-1/2